fUST/lending_fUST_20250127
["ID","MTS","AMOUNT","RATE_DAILY","PERIOD"]
[350549448,1737959370853,-500.0,0.0001947,2]
[350549449,1737959370875,-500.0,0.0001947,2]
[350549450,1737959370895,-500.0,0.0001947,2]
[350549451,1737959370916,-500.0,0.0001947,2]
[350549452,1737959370937,-500.0,0.0001947,2]
[350549453,1737959370959,-500.0,0.0001947,2]
[350549454,1737959370980,-500.0,0.0001947,2]
[350549455,1737959371002,-500.0,0.0001947,2]
[350549456,1737959371022,-500.0,0.0001947,2]
[350549457,1737959371044,-500.0,0.0001947,2]
[350549458,1737959371065,-500.0,0.0001947,2]
[350549459,1737959371086,-500.0,0.0001947,2]
[350549460,1737959371107,-500.0,0.0001947,2]
[350549461,1737959371126,-736.83,0.0001947,2]
[350549462,1737959371151,-500.0,0.0001947,2]
[350549463,1737959371172,-500.0,0.0001947,2]
[350549464,1737959371193,-564.19,0.0001947,2]
[350549465,1737959371213,-500.0,0.0001947,2]
[350549466,1737959371236,-500.0,0.0001947,2]
[350549467,1737959371258,-500.0,0.0001947,2]
[350549468,1737959371279,-500.0,0.0001947,2]
[350549469,1737959371300,-500.0,0.0001947,2]
[350549470,1737959371321,-500.0,0.0001947,2]
[350549471,1737959371343,-500.0,0.0001947,2]
[350549472,1737959371364,-500.0,0.0001947,2]
[350549473,1737959371385,-500.0,0.0001947,2]
[350549474,1737959371407,-500.0,0.0001947,2]
[350549475,1737959371429,-500.0,0.0001947,2]
[350549476,1737959371451,-500.0,0.0001947,2]
[350549477,1737959371472,-500.0,0.0001947,2]
[350549478,1737959371494,-500.0,0.0001947,2]
[350549479,1737959371515,-500.0,0.0001947,2]
[350549480,1737959371537,-500.0,0.0001947,2]
[350549481,1737959371558,-546.1,0.0001947,2]
[350549482,1737959371579,-500.0,0.0001947,2]
[350549483,1737959371600,-500.0,0.0001947,2]
[350549484,1737959371621,-500.0,0.0001947,2]
[350549485,1737959371644,-500.0,0.0001947,2]
[350549486,1737959371665,-500.0,0.0001947,2]
[350549487,1737959371686,-500.0,0.0001947,2]
[350549488,1737959371707,-500.0,0.0001947,2]
[350549489,1737959371729,-500.0,0.0001947,2]
[350549490,1737959371751,-500.0,0.0001947,2]
[350549491,1737959371779,-500.0,0.0001947,2]
[350549492,1737959371803,-500.0,0.0001947,2]
[350549493,1737959371825,-508.89,0.0001947,2]
[350549494,1737959371848,-500.0,0.0001947,2]
[350549495,1737959371870,-500.0,0.0001947,2]
[350549496,1737959371892,-904.4,0.0001947,2]
[350549497,1737959371915,-500.0,0.0001947,2]
[350549498,1737959371938,-500.0,0.0001947,2]
[350549499,1737959371961,-500.0,0.0001947,2]
[350549500,1737959371983,-500.0,0.0001947,2]
[350549501,1737959372007,-500.0,0.0001947,2]
[350549502,1737959372029,-500.0,0.0001947,2]
[350549503,1737959372053,-500.0,0.0001947,2]
[350549504,1737959372076,-500.0,0.0001947,2]
[350549505,1737959372099,-500.0,0.0001947,2]
[350549506,1737959372121,-500.0,0.0001947,2]
[350549507,1737959372143,-500.0,0.0001947,2]
[350549508,1737959372164,-500.0,0.0001947,2]
[350549509,1737959372186,-500.0,0.0001947,2]
[350549510,1737959372208,-500.0,0.0001947,2]
[350549511,1737959372232,-6084.7,0.0001947,2]
[350549512,1737959372350,-681.07,0.0001947,2]
[350549513,1737959372375,-500.0,0.0001947,2]
[350549514,1737959372398,-500.0,0.0001947,2]
[350549515,1737959372420,-500.0,0.0001947,2]
[350549516,1737959372441,-500.0,0.0001947,2]
[350549517,1737959372463,-500.0,0.0001947,2]
[350549518,1737959372488,-500.0,0.0001947,2]
[350549519,1737959372510,-506.48418906,0.0001947,2]
[350549520,1737959372531,-500.0,0.0001947,2]
[350549521,1737959372555,-500.0,0.0001947,2]
[350549522,1737959372578,-500.0,0.0001947,2]
[350549523,1737959372599,-500.0,0.0001947,2]
[350549524,1737959372622,-1544.11,0.0001947,2]
[350549525,1737959372643,-500.0,0.0001947,2]
[350549526,1737959372665,-500.0,0.0001947,2]
[350549527,1737959372686,-506.2691545,0.0001947,2]
[350549528,1737959372707,-500.0,0.0001947,2]
[350549529,1737959372728,-500.0,0.0001947,2]
[350549530,1737959372749,-490.53731309,0.0001947,2]
[350549531,1737959372774,-573.66322432,0.0001947,2]
[350549532,1737959372796,-610.15,0.0001947,2]
[350549533,1737959372820,-6807.81,0.0001947,2]
[350549534,1737959372842,-500.0,0.0001947,2]
[350549535,1737959372865,-22591.68,0.0001947,2]
[350549536,1737959372886,-505.63659012,0.0001947,2]
[350549537,1737959372908,-500.0,0.0001947,2]
[350549538,1737959372931,-1089.02,0.0001947,2]
[350549539,1737959372954,-574.32,0.0001947,2]
[350549540,1737959372975,-500.0,0.0001947,2]
[350549541,1737959372996,-500.0,0.0001947,2]
[350549542,1737959373018,-505.12149709,0.0001947,2]
[350549543,1737959373043,-500.0,0.0001947,2]
[350549544,1737959373065,-500.0,0.0001947,2]
[350549545,1737959373089,-871.86,0.0001947,2]
[350549546,1737959373113,-871.86,0.0001947,2]
[350549547,1737959373137,-871.86,0.0001947,2]
[350549548,1737959373160,-871.86,0.0001947,2]
[350549549,1737959373183,-500.0,0.0001947,2]
[350549550,1737959373205,-500.0,0.0001947,2]
[350549551,1737959373228,-500.0,0.0001947,2]
[350549552,1737959373250,-500.0,0.0001947,2]
[350549553,1737959373272,-500.0,0.0001947,2]
[350549554,1737959373297,-500.0,0.0001947,2]
[350549555,1737959373320,-245.31627346,0.0001947,2]
[350549556,1737959373341,-500.0,0.0001947,2]
[350549557,1737959373364,-500.0,0.0001947,2]
[350549558,1737959373387,-500.0,0.0001947,2]
[350549559,1737959373409,-624.13459416,0.0001947,2]
[350549560,1737959373431,-214.81024625,0.0001947,2]
[350549561,1737959373453,-150.68,0.00019471,2]
[350549562,1737959373476,-500.0,0.00019471,2]
[350549563,1737959373498,-500.0,0.00019471,2]
[350549564,1737959373524,-500.0,0.00019471,2]
[350549565,1737959373547,-500.0,0.00019471,2]
[350549566,1737959373569,-500.0,0.00019471,2]
[350549567,1737959373592,-508.54004725,0.00019471,2]
[350549568,1737959373614,-500.0,0.00019471,2]
[350549569,1737959373635,-500.0,0.00019471,2]
[350549570,1737959373657,-481.3429744,0.00019471,2]
[350549571,1737959373678,-500.0,0.00019471,2]
[350549572,1737959373699,-500.0,0.00019471,2]
[350549573,1737959373722,-503.03572799,0.00019471,2]
[350549574,1737959373745,-526.60031119,0.00019471,2]
[350549575,1737959373772,-500.0,0.00019471,2]
[350549576,1737959373795,-500.0,0.00019471,2]
[350549577,1737959373818,-526.64215279,0.00019471,2]
[350549578,1737959373842,-500.0,0.00019471,2]
[350549579,1737959373866,-501.76151133,0.00019471,2]
[350549580,1737959373888,-503.47869546,0.00019471,2]
[350549581,1737959373911,-505.66836786,0.00019471,2]
[350549582,1737959373934,-500.0,0.00019471,2]
[350549583,1737959373956,-502.2955268,0.00019471,2]
[350549584,1737959373979,-500.0,0.00019471,2]
[350549585,1737959374002,-504.42385701,0.00019471,2]
[350549586,1737959374024,-503.21567277,0.00019471,2]
[350549587,1737959374048,-503.24834067,0.00019471,2]
[350549588,1737959374072,-224.22073742,0.00019471,2]
[350549589,1737959374095,-503.95402073,0.00019471,2]
[350549590,1737959374116,-508.05234027,0.00019471,2]
[350549591,1737959374140,-503.37855411,0.00019471,2]
[350549592,1737959374164,-509.84283566,0.00019471,2]
[350549593,1737959374187,-506.39749754,0.00019471,2]
[350549594,1737959374209,-505.65156173,0.00019471,2]
[350549595,1737959374231,-502.73815496,0.00019471,2]
[350549596,1737959374254,-386.19506825,0.00019471,2]
[350549597,1737959374276,-500.0,0.00019471,2]
[350549598,1737959374299,-420.55267262,0.00019471,2]
[350549599,1737959374322,-246.55834315,0.00019471,2]
[350549600,1737959374345,-500.0,0.00019471,2]
[350549601,1737959374366,-500.0,0.00019471,2]
[350549602,1737959374387,-500.0,0.00019471,2]
[350549603,1737959374492,-500.0,0.00019471,2]
[350549604,1737959374520,-500.0,0.00019471,2]
[350549605,1737959374542,-500.0,0.00019471,2]
[350549606,1737959374564,-500.0,0.00019471,2]
[350549607,1737959374586,-500.0,0.00019471,2]
[350549608,1737959374608,-500.0,0.00019471,2]
[350549609,1737959374630,-168.99317469,0.00019471,2]
[350549637,1737959432326,-300.0,0.0001908,2]
[350549638,1737959432337,-300.0,0.00019273,2]
[350549639,1737959432347,-151.65682702,0.00019459,2]
[350549640,1737959432356,-789.19,0.0001946,3]
[350549641,1737959432365,-394.59,0.00019461,3]
[350549642,1737959432374,-197.3,0.00019461,3]
[350549643,1737959432383,-591.92,0.00019461,3]
[350549644,1737959432392,-300.0,0.00019467,2]
[350549645,1737959432401,-500.0,0.00019468,2]
[350549646,1737959432410,-500.0,0.00019468,2]
[350549647,1737959432419,-75.17987176,0.00019468,2]
[350549648,1737959432430,-424.82012824,0.00019468,2]
[350549649,1737959432439,-719.69,0.00019468,2]
[350549650,1737959432448,-606.24768624,0.00019468,2]
[350549651,1737959432459,-1000.3,0.00019468,2]
[350549652,1737959432470,-671.34231376,0.00019468,2]
[350549653,1737959432480,-500.0,0.00019468,2]
[350549654,1737959432489,-500.7392509,0.00019468,2]
[350549655,1737959432498,-500.59016103,0.00019468,2]
[350549656,1737959432507,-500.0,0.00019468,2]
[350549657,1737959432517,-506.05382003,0.00019468,2]
[350549658,1737959432525,-500.0,0.00019468,2]
[350549659,1737959432535,-500.0,0.00019468,2]
[350549660,1737959432544,-500.0,0.00019468,2]
[350549661,1737959432553,-503.50695157,0.00019468,2]
[350549662,1737959432562,-500.0,0.00019468,2]
[350549663,1737959432571,-500.0,0.00019469,2]
[350549664,1737959432582,-500.0,0.00019469,2]
[350549665,1737959432591,-866.72,0.00019469,2]
[350549667,1737959432601,-500.0,0.00019469,2]
[350549669,1737959432610,-551.73948752,0.00019469,2]
[350549671,1737959432619,-500.0,0.00019469,2]
[350549673,1737959432628,-500.0,0.00019469,2]
[350549675,1737959432638,-500.0,0.00019469,2]
[350549677,1737959432647,-500.0,0.00019469,2]
[350549679,1737959432656,-500.0,0.00019469,2]
[350549681,1737959432665,-5831.17,0.00019469,2]
[350549682,1737959432674,-500.0,0.0001947,2]
[350549683,1737959432683,-500.0,0.0001947,2]
[350549684,1737959432692,-567.96,0.0001947,2]
[350549685,1737959432701,-500.0,0.0001947,2]
[350549686,1737959432710,-500.0,0.0001947,2]
[350549687,1737959432719,-500.0,0.0001947,2]
[350549688,1737959432729,-500.0,0.0001947,2]
[350549689,1737959432738,-500.0,0.0001947,2]
[350549690,1737959432747,-698.42,0.0001947,2]
[350549691,1737959432756,-500.0,0.0001947,2]
[350549692,1737959432765,-500.0,0.0001947,2]
[350549693,1737959432774,-501.23271537,0.0001947,2]
[350549694,1737959432788,-503.12681267,0.0001947,2]
[350549695,1737959432797,-500.0,0.0001947,2]
[350549696,1737959432806,-504.7021139,0.0001947,2]
[350549697,1737959432815,-500.0,0.0001947,2]
[350549698,1737959432825,-331.00682531,0.00019471,2]
[350549699,1737959432835,-500.00000001,0.00019471,2]
[350549700,1737959432844,-500.0,0.00019471,2]
[350549701,1737959432853,-590.0,0.00019471,2]
[350549702,1737959432862,-500.0,0.00019471,2]
[350549703,1737959432872,-500.0,0.00019471,2]
[350549704,1737959432881,-500.0,0.00019471,2]
[350549705,1737959432891,-500.0,0.00019471,2]
[350549706,1737959432900,-500.0,0.00019471,2]
[350549707,1737959432909,-500.0,0.00019471,2]
[350549708,1737959432918,-577.18360982,0.00019471,2]
[350549709,1737959432927,-502.98263348,0.00019471,2]
[350549710,1737959432936,-500.0,0.00019471,2]
[350549711,1737959432945,-500.0,0.00019471,2]
[350549712,1737959432954,-500.0,0.00019471,2]
[350549713,1737959432964,-500.0,0.00019471,2]
[350549714,1737959432973,-500.0,0.00019471,2]
[350549715,1737959432982,-500.0,0.00019471,2]
[350549716,1737959432991,-500.0,0.00019471,2]
[350549717,1737959433000,-500.0,0.00019471,2]
[350549718,1737959433009,-500.0,0.00019471,2]
[350549719,1737959433018,-500.0,0.00019471,2]
[350549720,1737959433028,-500.0,0.00019471,2]
[350549721,1737959433037,-500.0,0.00019471,2]
[350549722,1737959433046,-500.0,0.00019471,2]
[350549723,1737959433055,-500.0,0.00019471,2]
[350549724,1737959433065,-500.0,0.00019471,2]
[350549725,1737959433074,-529.82209289,0.00019471,2]
[350549726,1737959433084,-500.0,0.00019471,2]
[350549727,1737959433093,-500.0,0.00019471,2]
[350549728,1737959433102,-500.0,0.00019471,2]
[350549729,1737959433112,-500.0,0.00019471,2]
[350549730,1737959433122,-500.0,0.00019471,2]
[350549731,1737959433132,-500.0,0.00019471,2]
[350549732,1737959433141,-500.0,0.00019471,2]
[350549733,1737959433151,-500.0,0.00019471,2]
[350549734,1737959433160,-500.0,0.00019471,2]
[350549735,1737959433169,-500.0,0.00019471,2]
[350549736,1737959433179,-500.0,0.00019471,2]
[350549737,1737959433188,-500.0,0.00019471,2]
[350549738,1737959433198,-500.0,0.00019471,2]
[350549739,1737959433207,-500.0,0.00019471,2]
[350549740,1737959433217,-301.28411828,0.00019471,2]
[350549741,1737959433226,-500.0,0.00019471,2]
[350549742,1737959433236,-500.0,0.00019471,2]
[350549743,1737959433245,-500.0,0.00019471,2]
[350549744,1737959433255,-500.0,0.00019471,2]
[350549745,1737959433264,-500.0,0.00019471,2]
[350549746,1737959433273,-500.0,0.00019471,2]
[350549747,1737959433282,-500.0,0.00019471,2]
[350549748,1737959433292,-500.0,0.00019471,2]
[350549749,1737959433301,-525.1987184,0.00019471,2]
[350549750,1737959433394,-500.0,0.00019471,2]
[350549751,1737959433407,-500.0,0.00019471,2]
[350549752,1737959433416,-500.0,0.00019471,2]
[350549753,1737959433426,-500.0,0.00019471,2]
[350549754,1737959433435,-500.0,0.00019471,2]
[350549755,1737959433444,-502.61192951,0.00019471,2]
[350549756,1737959433454,-500.0,0.00019471,2]
[350549757,1737959433463,-500.0,0.00019471,2]
[350549758,1737959433472,-500.0,0.00019471,2]
[350549759,1737959433481,-592.40321656,0.00019471,2]
[350549760,1737959433490,-502.01651523,0.00019471,2]
[350549761,1737959433500,-461.41123497,0.00019471,2]
[350549762,1737959433508,-500.0,0.00019471,2]
[350549763,1737959433517,-500.0,0.00019471,2]
[350549764,1737959433526,-500.0,0.00019471,2]
[350549765,1737959433535,-441.33437421,0.00019471,2]
[350549766,1737959433545,-500.0,0.00019471,2]
[350549767,1737959433554,-500.0,0.00019471,2]
[350549768,1737959433563,-500.0,0.00019471,2]
[350549769,1737959433572,-625.96939507,0.00019471,2]
[350549770,1737959433582,-500.0,0.00019471,2]
[350549771,1737959433591,-500.0,0.00019471,2]
[350549772,1737959433600,-501.87262268,0.00019471,2]
[350549773,1737959433610,-500.0,0.00019471,2]
[350549774,1737959433619,-500.0,0.00019471,2]
[350549775,1737959433628,-504.75694032,0.00019471,2]
[350549776,1737959433637,-500.0,0.00019471,2]
[350549777,1737959433647,-574.13831262,0.00019471,2]
[350549778,1737959433656,-500.0,0.00019471,2]
[350549779,1737959433665,-500.0,0.00019471,2]
[350549780,1737959433674,-500.0,0.00019471,2]
[350549781,1737959433683,-500.0,0.00019471,2]
[350549782,1737959433692,-500.0,0.00019471,2]
[350549783,1737959433701,-500.0,0.00019471,2]
[350549784,1737959433710,-500.0,0.00019471,2]
[350549785,1737959433720,-500.0,0.00019471,2]
[350549786,1737959433729,-500.0,0.00019471,2]
[350549787,1737959433738,-500.0,0.00019471,2]
[350549788,1737959433747,-500.0,0.00019471,2]
[350549789,1737959433757,-500.0,0.00019471,2]
[350549790,1737959433766,-500.0,0.00019471,2]
[350549791,1737959433775,-500.0,0.00019471,2]
[350549792,1737959433786,-500.0,0.00019471,2]
[350549793,1737959433797,-500.0,0.00019471,2]
[350549794,1737959433806,-507.99305214,0.00019471,2]
[350549795,1737959433815,-500.0,0.00019471,2]
[350549796,1737959433824,-500.0,0.00019471,2]
[350549797,1737959433835,-500.0,0.00019471,2]
[350549798,1737959433844,-500.0,0.00019471,2]
[350549799,1737959433853,-500.0,0.00019471,2]
[350549800,1737959433864,-500.0,0.00019471,2]
[350549801,1737959433873,-500.0,0.00019471,2]
[350549802,1737959433882,-500.55157058,0.00019471,2]
[350549803,1737959433891,-500.0,0.00019471,2]
[350549804,1737959433901,-501.29574141,0.00019471,2]
[350549805,1737959433910,-500.0,0.00019471,2]
[350549806,1737959433919,-500.0,0.00019471,2]
[350549807,1737959433928,-500.0,0.00019471,2]
[350549808,1737959433938,-500.0,0.00019471,2]
[350549809,1737959433947,-776.48,0.00019471,2]
[350549810,1737959433957,-500.0,0.00019471,2]
[350549811,1737959433967,-501.48295008,0.00019471,2]
[350549812,1737959433975,-501.45071982,0.00019471,2]
[350549813,1737959433985,-500.0,0.00019471,2]
[350549814,1737959433994,-500.0,0.00019471,2]
[350549815,1737959434003,-500.0,0.00019471,2]
[350549816,1737959434012,-500.0,0.00019471,2]
[350549817,1737959434021,-500.0,0.00019471,2]
[350549818,1737959434031,-500.0,0.00019471,2]
[350549819,1737959434041,-503.40673667,0.00019471,2]
[350549820,1737959434051,-504.32241174,0.00019471,2]
[350549821,1737959434060,-500.0,0.00019471,2]
[350549822,1737959434069,-502.12504046,0.00019471,2]
[350549823,1737959434078,-526.0848311,0.00019471,2]
[350549824,1737959434088,-248.75813555,0.00019471,2]
[350549825,1737959434098,-500.0,0.00019471,2]
[350549826,1737959434107,-500.0,0.00019471,2]
[350549827,1737959434116,-301.50683969,0.00019471,2]
[350549828,1737959434125,-501.41733031,0.00019471,2]
[350549829,1737959434135,-503.91162448,0.00019471,2]
[350549830,1737959434144,-500.0,0.00019471,2]
[350549831,1737959434153,-500.0,0.00019471,2]
[350549832,1737959434163,-515.19138568,0.00019471,2]
[350549833,1737959434172,-500.0,0.00019471,2]
[350549834,1737959434182,-500.0,0.00019471,2]
[350549835,1737959434191,-500.0,0.00019471,2]
[350549836,1737959434201,-500.0,0.00019471,2]
[350549837,1737959434210,-500.0,0.00019471,2]
[350549838,1737959434219,-500.0,0.00019471,2]
[350549839,1737959434229,-500.0,0.00019471,2]
[350549840,1737959434238,-500.0,0.00019471,2]
[350549841,1737959434248,-500.0,0.00019471,2]
[350549842,1737959434257,-500.0,0.00019471,2]
[350549843,1737959434267,-500.84848861,0.00019471,2]
[350549844,1737959434276,-500.0,0.00019471,2]
[350549845,1737959434285,-500.0,0.00019471,2]
[350549846,1737959434294,-571.57914145,0.00019471,2]
[350549847,1737959434303,-503.19474602,0.00019471,2]
[350549848,1737959434312,-500.0,0.00019471,2]
[350549849,1737959434321,-500.0,0.00019471,2]
[350549850,1737959434330,-500.0,0.00019471,2]
[350549851,1737959434342,-502.68494034,0.00019471,2]
[350549852,1737959434351,-1000.0,0.00019471,2]
[350549853,1737959434360,-500.0,0.00019471,2]
[350549854,1737959434369,-512.50351832,0.00019471,2]
[350549855,1737959434378,-500.0,0.00019471,2]
[350549856,1737959434387,-547.34731206,0.00019471,2]
[350549857,1737959434396,-500.0,0.00019471,2]
[350549858,1737959434405,-504.33723415,0.00019471,2]
[350549859,1737959434414,-500.0,0.00019471,2]
[350549860,1737959434423,-500.0,0.00019471,2]
[350549861,1737959434433,-501.6966905,0.00019471,2]
[350549862,1737959434442,-500.0,0.00019471,2]
[350549863,1737959434452,-871.86,0.00019471,2]
[350549864,1737959434461,-871.86,0.00019471,2]
[350549865,1737959434470,-500.0,0.00019471,2]
[350549866,1737959434480,-500.88736168,0.00019471,2]
[350549867,1737959434489,-500.0,0.00019471,2]
[350549868,1737959434498,-500.0,0.00019471,2]
[350549869,1737959434507,-500.0,0.00019471,2]
[350549870,1737959434516,-500.0,0.00019471,2]
[350549871,1737959434526,-500.0,0.00019471,2]
[350549872,1737959434535,-500.0,0.00019471,2]
[350549873,1737959434545,-500.0,0.00019471,2]
[350549874,1737959434554,-500.0,0.00019471,2]
[350549875,1737959434563,-502.99011925,0.00019471,2]
[350549876,1737959434573,-502.93883933,0.00019471,2]
[350549877,1737959434582,-275.0931074,0.00019471,2]
[350549878,1737959434591,-500.0,0.00019471,2]
[350549879,1737959434600,-253.59021232,0.00019471,2]
[350549880,1737959434609,-500.0,0.00019471,2]
[350549881,1737959434618,-502.73551825,0.00019471,2]
[350549882,1737959434627,-500.0,0.00019471,2]
[350549883,1737959434637,-501.73517961,0.00019471,2]
[350549884,1737959434646,-565.40523047,0.00019471,2]
[350549885,1737959434655,-504.51740184,0.00019471,2]
[350549886,1737959434665,-505.35468117,0.00019471,2]
[350549887,1737959434674,-502.67930547,0.00019471,2]
[350549888,1737959434683,-502.69971859,0.00019471,2]
[350549889,1737959434692,-504.88871867,0.00019471,2]
[350549890,1737959434702,-502.86890808,0.00019471,2]
[350549891,1737959434711,-502.52072628,0.00019471,2]
[350549892,1737959434720,-500.0,0.00019471,2]
[350549893,1737959434729,-506.99580976,0.00019471,2]
[350549894,1737959434739,-504.09546336,0.00019471,2]
[350549895,1737959434748,-500.0,0.00019471,2]
[350549896,1737959434757,-500.0,0.00019471,2]
[350549897,1737959434767,-506.31132945,0.00019471,2]
[350549898,1737959434776,-500.0,0.00019471,2]
[350549899,1737959434790,-508.61790727,0.00019471,2]
[350549900,1737959434800,-505.7519213,0.00019471,2]
[350549901,1737959434809,-506.43158707,0.00019471,2]
[350549902,1737959434818,-500.0,0.00019471,2]
[350549903,1737959434829,-501.1665658,0.00019471,2]
[350549904,1737959434839,-500.0,0.00019471,2]
[350549905,1737959434849,-501.27345042,0.00019471,2]
[350549906,1737959434859,-501.48406255,0.00019471,2]
[350549907,1737959434869,-502.31614699,0.00019471,2]
[350549908,1737959434878,-611.58,0.00019472,2]
[350549909,1737959434887,-500.0,0.00019472,2]
[350549910,1737959434896,-500.0,0.00019472,2]
[350549911,1737959434906,-500.0,0.00019472,2]
[350549912,1737959434989,-774.7,0.00019472,2]
[350549913,1737959434999,-500.0,0.00019472,2]
[350549914,1737959435008,-500.0,0.00019472,2]
[350549915,1737959435017,-500.0,0.00019472,2]
[350549916,1737959435026,-500.0,0.00019472,2]
[350549917,1737959435035,-500.0,0.00019472,2]
[350549918,1737959435044,-500.0,0.00019472,2]
[350549919,1737959435054,-500.0,0.00019472,2]
[350549920,1737959435063,-500.0,0.00019472,2]
[350549921,1737959435072,-510.43748257,0.00019472,2]
[350549922,1737959435081,-500.0,0.00019472,2]
[350549923,1737959435091,-500.0,0.00019472,2]
[350549924,1737959435101,-500.0,0.00019472,2]
[350549925,1737959435111,-500.0,0.00019472,2]
[350549926,1737959435120,-500.0,0.00019472,2]
[350549927,1737959435130,-500.0,0.00019472,2]
[350549928,1737959435141,-500.0,0.00019472,2]
[350549929,1737959435151,-500.0,0.00019472,2]
[350549930,1737959435160,-828.16,0.00019472,2]
[350549931,1737959435170,-500.0,0.00019472,2]
[350549932,1737959435179,-151.0,0.000195,2]
[350549933,1737959435189,-151.0,0.000196,2]
[350549934,1737959435198,-151.0,0.000196,2]
[350549935,1737959435207,-500.0,0.00019605,2]
[350549936,1737959435216,-1333.99,0.00019605,2]
[350549937,1737959435225,-659.49,0.00019605,2]
[350549938,1737959435234,-500.0,0.00019605,2]
[350549939,1737959435243,-500.0,0.00019605,2]
[350549940,1737959435251,-719.69,0.00019605,2]
[350549941,1737959435261,-2277.89,0.00019605,2]
[350549942,1737959435270,-502.26910456,0.00019605,2]
[350549943,1737959435279,-500.0,0.00019605,2]
[350549944,1737959435288,-500.0,0.00019605,2]
[350549945,1737959435297,-500.0,0.00019606,2]
[350549946,1737959435307,-500.0,0.00019606,2]
[350549947,1737959435316,-500.0,0.00019606,2]
[350549948,1737959435325,-4007.34,0.00019606,2]
[350549949,1737959435334,-1355.78,0.00019606,2]
[350549950,1737959435343,-421.35839547,0.00019606,2]
[350549951,1737959435352,-1761.59,0.00019606,2]
[350549952,1737959435361,-847.49,0.00019606,2]
[350549953,1737959435371,-730.91,0.00019606,2]
[350549954,1737959435380,-500.0,0.00019606,2]
[350549955,1737959435389,-500.0,0.00019606,2]
[350549956,1737959435398,-500.0,0.00019606,2]
[350549957,1737959435407,-500.0,0.00019606,2]
[350549958,1737959435416,-500.0,0.00019606,2]
[350549959,1737959435425,-1490.74,0.00019606,2]
[350549960,1737959435435,-500.0,0.00019606,2]
[350549961,1737959435444,-754.94,0.00019606,2]
[350549962,1737959435453,-500.0,0.00019606,2]
[350549963,1737959435462,-1734.95,0.00019606,2]
[350549964,1737959435471,-2780.86,0.00019606,2]
[350549965,1737959435480,-500.0,0.00019606,2]
[350549966,1737959435490,-500.0,0.00019606,2]
[350549967,1737959435499,-871.86,0.00019606,2]
[350549968,1737959435508,-500.0,0.00019606,2]
[350549969,1737959435517,-500.0,0.00019606,2]
[350549970,1737959435527,-851.62,0.00019606,2]
[350549971,1737959435536,-1416.73,0.00019606,2]
[350549972,1737959435546,-500.0,0.00019606,2]
[350549973,1737959435555,-500.0,0.00019606,2]
[350549974,1737959435564,-713.52,0.00019606,2]
[350549975,1737959435573,-821.4,0.00019606,2]
[350549976,1737959435584,-500.0,0.00019606,2]
[350549977,1737959435592,-500.0,0.00019606,2]
[350549978,1737959435601,-500.0,0.00019606,2]
[350549979,1737959435610,-866.72,0.00019606,2]
[350549980,1737959435620,-500.0,0.00019606,2]
[350549981,1737959435629,-500.0,0.00019606,2]
[350549982,1737959435638,-500.0,0.00019606,2]